Cogmind - Beta 13 @@@ ROGUE MODE // 2024.05.16 @ 22:18:14 Player: Lunace Result: Self-destructed Performance ------------- Evolutions (4) 2000 Regions Visited (11) 2200 Robots Destroyed (49) 245 Value Destroyed (1699) 1699 Prototype IDs (36) 720 Alien Tech Used (0) 0 Bonus (637) 637 TOTAL SCORE: 7501 Bonus ------- Follower Combat Kills 37 Aligned with FarCom 300 Met Data Miner 300 Cogmind --------- Core Integrity 514/850 Matter 20/300 Energy 100/100 System Corruption 0% Temperature Cool (9) Movement Core (1000) Ox19 Location -6/Factory Parts ------- > --- POWER (2) -------- (None) > --- PROPULSION (4) --- (None) > --- UTILITY (5) ------ High-capacity Storage Unit Improved Signal Interpreter > --- WEAPON (4) ------- Magnetic Acceleration Cannon Heavy Flak Cannon Makeshift Sword > --- INVENTORY (20) --- Fusion Compressor Shield Generator Improved System Shield System Restoration Module Recalibrator Gatling Laser Thermic Laser Improved Light Cannon Heavy Flak Cannon Heavy Flak Cannon Dirty Datajack (17) Remote Datajack Peak State ------------ > --- POWER ------------ Nuclear Core > --- PROPULSION ------- Enhanced Flexi-carbon Leg > --- UTILITY ---------- High-capacity Storage Unit Improved Signal Interpreter Core Analyzer Transmission Jammer Improved Light Armor Plating > --- WEAPON ----------- Magnetic Acceleration Cannon Heavy Flak Cannon Heavy Flak Cannon Heavy Flak Cannon > --- INVENTORY -------- Improved Deuterium Engine Fusion Compressor Shield Generator Improved System Shield System Restoration Module Recalibrator Gatling Laser Thermic Laser Improved Light Cannon Heavy Flak Cannon Heavy Flak Cannon Dirty Datajack Remote Datajack Makeshift Sword [Rating: 50] Favorites ----------- Power Ion Engine Engine Ion Engine Power Core Nuclear Core Propulsion Light Treads Treads Light Treads Leg Enhanced Flexi-carbon Leg Hover Unit Improved Hover Unit Flight Unit Nuclear Pulse Thruster Utility Large Storage Unit Device Shield Generator Storage Large Storage Unit Processor Improved Signal Interpreter Protection Layered Medium Armor Plating Weapon Assault Rifle Energy Gun Force Rifle Energy Cannon Guided Plasma Cannon Ballistic Gun Assault Rifle Ballistic Cannon Improved Light Cannon Launcher Rocket Launcher Slashing Weapon Makeshift Sword Special Melee Weapon Dirty Datajack Build | -11 -10 -10 -10 -9 -8 -7 -7 -7 -7 -6 -6 ------- Run | Yrd Mat Min Exi Min Mat Fac Low Low Dat Pro Fac Slots Evolved 8 | . . . . . 4 2 . . . . 2 Power 1 | . . . . . . . . . . . 1 Propulsion 2 | . . . . . 1 1 . . . . . Utility 3 | . . . . . 1 1 . . . . 1 Weapon 2 | . . . . . 2 . . . . . . Parts Attached 64 | 6 9 4 4 2 5 4 . 9 . 9 12 Power 8 | 1 1 . 1 . . 2 . 1 . . 2 Engine 6 | 1 1 . 1 . . 1 . 1 . . 1 Core 2 | . . . . . . 1 . . . . 1 Reactor . | . . . . . . . . . . . . Propulsion 8 | 2 . 1 . . 1 . . 2 . 1 1 Treads 5 | 2 . 1 . . 1 . . 1 . . . Leg 1 | . . . . . . . . . . 1 . Wheel . | . . . . . . . . . . . . Hover 1 | . . . . . . . . . . . 1 Flight 1 | . . . . . . . . 1 . . . Utility 18 | 1 3 1 2 . 3 2 . 2 . 2 2 Device 5 | . 2 1 . . . . . . . 1 1 Storage 7 | 1 1 . 2 . 2 . . 1 . . . Processor 3 | . . . . . . 2 . 1 . . . Hackware . | . . . . . . . . . . . . Protection 3 | . . . . . 1 . . . . 1 1 Artifact . | . . . . . . . . . . . . Weapon 30 | 2 5 2 1 2 1 . . 4 . 6 7 Energy Gun 1 | . . . . . . . . . . . 1 Energy Cannon 1 | . . . 1 . . . . . . . . Ballistic Gun 8 | 2 3 1 . . 1 . . . . 1 . Ballistic Cannon 10 | . . . . . . . . 1 . 4 5 Launcher 7 | . 2 1 . 2 . . . 2 . . . Special Weapon . | . . . . . . . . . . . . Impact Weapon . | . . . . . . . . . . . . Slashing Weapon 1 | . . . . . . . . . . . 1 Piercing Weapon . | . . . . . . . . . . . . Special Melee Weapon 2 | . . . . . . . . 1 . 1 . Unidentified Prototypes 2 | . . . . . . . . . . 1 1 Parts Lost 23 | . 1 . . . . . . 4 . 8 10 Power 3 | . . . . . . . . . . 1 2 Propulsion 7 | . . . . . . . . 3 . 2 2 Utility 5 | . . . . . . . . . . 1 4 Weapon 8 | . 1 . . . . . . 1 . 4 2 Highest Loss Streak 8 | . 1 . . . . . . 2 . 4 8 To Critical Strikes . | . . . . . . . . . . . . Average Slot Usage (%) 83 | . 98 100 100 100 81 77 76 82 69 65 56 Engine 8 | . 13 14 14 14 9 4 7 7 7 1 . Treads 18 | . 28 28 28 28 22 23 23 22 7 1 . Leg 1 | . . . . . . . . . . 5 5 Device 6 | . 13 14 14 14 9 7 . . . . 1 Storage 10 | . 14 14 14 14 9 7 7 7 7 7 6 Processor 7 | . . . . . . 1 15 17 23 16 12 Protection 2 | . . . . . 4 7 7 4 . 5 5 Energy Cannon 2 | . . . 8 14 9 7 . . . . . Ballistic Gun 10 | . 25 25 19 . 9 7 7 6 . 2 . Ballistic Cannon 4 | . . . . . . . . . . 17 14 Launcher 5 | . 2 2 . 13 9 7 7 7 15 2 . Naked Turns . | . . . . . . . . . . . . Heaviest Build 83 | 14 30 32 37 39 52 59 57 70 61 69 83 Greatest Support 80 | 40 40 40 40 40 60 60 60 80 20 28 28 Greatest Overweight (x) 25 | 1 . . . . 1 . . 3 3 20 25 Average Overweight (x) . | . . . . . . . . . 3 2 2 Largest Inventory Capacity 20 | 8 15 15 20 15 20 15 15 20 20 20 20 Average Capacity 16 | 6 10 15 15 15 15 15 15 18 20 20 20 Most Carried 20 | 1 13 14 16 15 15 15 15 20 17 19 16 Average Carried 13 | . 7 13 14 15 13 13 15 16 17 13 13 Final Capacity 20 | 8 15 15 15 15 15 15 15 20 20 20 20 Final Carried 17 | 1 13 14 15 15 14 15 15 17 17 13 12 Class Distribution -------------------- 57% | Mutant 33% | Gunner 5% | Tank Dominant Class ---------------- Mutant | -10/Materials Mutant | -10/Mines Mutant | -10/Exiles Mutant | -9/Mines Tank | -8/Materials Tank | -7/Factory Gunner | -7/Lower Caves Gunner | -7/Lower Caves Mutant | -7/Data Miner Gunner | -6/Proximity Caves Gunner | -6/Factory Resources | -11 -10 -10 -10 -9 -8 -7 -7 -7 -7 -6 -6 ----------- Run | Yrd Mat Min Exi Min Mat Fac Low Low Dat Pro Fac Matter Collected 1663 | 220 374 103 20 80 29 . 115 93 . 534 95 Remotely 253 | . . . . . . . . . . 253 . Salvage Created 1366 | . 455 51 . 33 29 . 75 293 . 285 145 Parts 72 | . 24 5 . 6 1 . 2 14 . 14 6 Haulers Intercepted 1 | . 1 . . . . . . . . . . Recyclers Shooed 1 | . . . . . . . . . . . 1 Parts Field Recycled . | . . . . . . . . . . . . Retrieved Matter . | . . . . . . . . . . . . Parts Self-Destructed 27 | . . . . . . . 2 9 . 16 . Prevented 1 | . . . . . . . 1 . . . . Kills | -11 -10 -10 -10 -9 -8 -7 -7 -7 -7 -6 -6 ------- Run | Yrd Mat Min Exi Min Mat Fac Low Low Dat Pro Fac Combat Hostiles Destroyed 45 | . 11 6 . 4 . . 2 7 . 12 3 Melee 1 | . . . . . . . . . . . 1 Guns 19 | . 8 3 . . . . 2 5 . 1 . Cannons 10 | . . . . . . . . . . 8 2 AOE 15 | . 3 3 . 4 . . . 2 . 3 . Classes Destroyed 13 | . 3 2 . 1 . . 2 3 . . 2 Worker 1 | . . . . . . . . . . . 1 Tunneler 1 | . . . . 1 . . . . . . . Hauler 1 | . 1 . . . . . . . . . . Watcher 4 | . 2 . . . 1 . . . . . 1 Swarmer 14 | . . 3 . 4 . . . . . 7 . Grunt 17 | . 11 . . . . . . 2 . 3 1 Brawler 1 | . . . . . . . . 1 . . . Sentry 3 | . . . . . . . 1 1 . 1 . Hunter 1 | . . . . . . . . . . . 1 Programmer 2 | . . . . . . . 1 . . . 1 Behemoth 2 | . . . . . . . . 1 . 1 . Thief 1 | . . . . . . . . 1 . . . Master Thief 1 | . . . . . . . . 1 . . . Assembled 3 | . . 3 . . . . . . . . . Best Kill Streak 5 | . 5 3 . 5 1 . 1 3 . 4 3 Combat Bots Only 4 | . 2 3 . 4 . . 1 3 . 4 2 Max Kills in Single Turn 3 | . 2 3 . 2 1 . 1 1 . 2 1 Gunslinging . | . . . . . . . . . . . . Exploded 3 | . 1 3 . 2 . . . 1 . 2 . Melee 1 | . . . . . . . . . . . 1 Uniques/NPCs Destroyed . | . . . . . . . . . . . . Combat | -11 -10 -10 -10 -9 -8 -7 -7 -7 -7 -6 -6 -------- Run | Yrd Mat Min Exi Min Mat Fac Low Low Dat Pro Fac Hostile Shots Fired 386 | . 55 5 . 4 2 . 26 49 . 116 129 Missed 113 | . 18 . . 1 1 . 14 15 . 31 33 Damage Taken 4644 | . 572 78 . 47 11 . 137 645 . 1433 1721 Core 859 | . 81 6 . 6 . . . 138 . 292 336 Absorbed by Shields 40 | . . 16 . 20 4 . . . . . . Regen/Repaired (Parts) 36 | . 36 . . . . . . . . . . Core Remaining (%) 75 | 100 . . . 62 100 . . . . 38 . Volleys Fired 110 | . 38 7 . 5 3 . 4 11 . 30 12 Largest 4 | . 2 2 . 1 1 . 1 2 . 4 4 Hottest 234 | . 50 40 . 30 120 . 33 60 . 164 234 Shots Fired 303 | . 70 13 . 5 4 . 30 57 . 85 39 Gun 169 | . 62 12 . . 1 . 26 40 . 22 6 Cannon 92 | . . . . . 3 . . . . 56 33 Launcher 42 | . 8 1 . 5 . . 4 17 . 7 . Special . | . . . . . . . . . . . . Kinetic 252 | . 62 12 . . 1 . 26 40 . 78 33 Thermal 9 | . . . . . 3 . . . . . 6 Explosive 42 | . 8 1 . 5 . . 4 17 . 7 . Electromagnetic . | . . . . . . . . . . . . Robot Hit Streak 19 | . 11 6 . 2 1 . 5 19 . 7 4 Robot Miss Streak 13 | . 2 1 . 3 . . 2 2 . 13 5 Penetration Max . | . . . . . . . . . . . . Secondary Targets 2 | . 1 1 . . . . . . . . . Max Gunslinging Chain 1 | . 1 1 . . . . . . . . . Autonomous 67 | . . . . . 1 . 26 40 . . . Shots Hit Robots 195 | . 46 9 . 1 1 . 19 44 . 49 26 Core Hits 128 | . 27 9 . 7 1 . 5 20 . 33 26 Critical Kills . | . . . . . . . . . . . . Critical Parts Destroyed 3 | . 2 . . . . . 1 . . . . Critical Strikes 3 | . 2 . . . . . 1 . . . . Destroy 3 | . 2 . . . . . 1 . . . . Melee Attacks 9 | . . . . . . . . . . 3 6 Impact . | . . . . . . . . . . . . Slashing 6 | . . . . . . . . . . . 6 Piercing 3 | . . . . . . . . . . 3 . Sneak Attacks . | . . . . . . . . . . . . Combat Hostiles . | . . . . . . . . . . . . Follow-up Attacks . | . . . . . . . . . . . . Damage Inflicted 5820 | . 904 219 . 323 128 . 593 1729 . 1225 699 Guns 2543 | . 511 102 . . 22 . 513 1071 . 276 48 Cannons 1168 | . . . . . 106 . . . . 574 488 Explosions 1944 | . 393 117 . 323 . . 80 658 . 373 . Melee 147 | . . . . . . . . . . 2 145 Ramming 18 | . . . . . . . . . . . 18 Kinetic 3557 | . 511 102 . . 22 . 513 1071 . 850 488 Thermal 154 | . . . . . 106 . . . . . 48 Explosive 1944 | . 393 117 . 323 . . 80 658 . 373 . Electromagnetic . | . . . . . . . . . . . . Impact . | . . . . . . . . . . . . Slashing 145 | . . . . . . . . . . . 145 Piercing 2 | . . . . . . . . . . 2 . Highest Corruption . | . . . . . . . . . . . . Average Corruption . | . . . . . . . . . . . . Corruption Purged . | . . . . . . . . . . . . Corruption Blocked . | . . . . . . . . . . . . Overload Shots . | . . . . . . . . . . . . Overflow Damage 61 | . 4 . . 3 . . . 22 . 32 . Projectiles . | . . . . . . . . . . . . Explosions 61 | . 4 . . 3 . . . 22 . 32 . Melee . | . . . . . . . . . . . . Knockbacks 19 | . . . . . . . . . . 4 15 Impact . | . . . . . . . . . . . . Kinetic 19 | . . . . . . . . . . 4 15 Secondary . | . . . . . . . . . . . . Self-Inflicted Damage 321 | . 127 13 . 44 . . 33 87 . 17 . Shots 14 | . 7 1 . 2 . . 1 2 . 1 . Rammed . | . . . . . . . . . . . . Targets Rammed 2 | . . . . . . . . . . . 2 Kicked 2 | . . . . . . . . . . . 2 Crushed . | . . . . . . . . . . . . Highest Temperature 407 | . 20 8 . . 148 . . 1 . 368 407 Average Temperature 133 | . 8 4 . . 65 . . 1 . 149 142 Received Heat Transfer 1179 | . 273 15 . . 6 . 6 108 . 246 525 Effects 3 | . . . . . . . . . . 2 1 Energy Bleed 1 | . . . . . . . . . . 1 . Interference 1 | . . . . . . . . . . 1 . Matter Decay 1 | . . . . . . . . . . . 1 Siege Activations . | . . . . . . . . . . . . Robots Corrupted . | . . . . . . . . . . . . Combat Hostiles . | . . . . . . . . . . . . Parts Fried . | . . . . . . . . . . . . Impact Corruptions . | . . . . . . . . . . . . Robots Melted . | . . . . . . . . . . . . Combat Hostiles . | . . . . . . . . . . . . Parts Melted 1 | . . . . . 1 . . . . . . Heat Transferred 314 | . . . . . 240 . . . . . 74 Parts Sabotaged . | . . . . . . . . . . . . Parts Stolen 4 | . . . . . . . 1 3 . . . Parts Stripped . | . . . . . . . . . . . . Power Chain Reactions . | . . . . . . . . . . . . Alert | -11 -10 -10 -10 -9 -8 -7 -7 -7 -7 -6 -6 ------- Run | Yrd Mat Min Exi Min Mat Fac Low Low Dat Pro Fac Peak Influence 318 | . 318 146 . 127 40 18 . . . . 140 Initial 45 | . . 45 . . . 18 . . . . . Average 95 | . 197 97 . 70 18 18 . . . . 23 Maximum Alert Level 1 | . 1 . . . . . . . . . . Low Security (%) 83 | 100 41 100 . 100 100 100 . . . . 100 Level 1 16 | . 58 . . . . . . . . . . Level 2 . | . . . . . . . . . . . . Level 3 . | . . . . . . . . . . . . Level 4 . | . . . . . . . . . . . . Level 5 . | . . . . . . . . . . . . High Security . | . . . . . . . . . . . . Max Security . | . . . . . . . . . . . . Squads Dispatched 3 | . 2 . . . . . . . . . 1 Investigation 1 | . 1 . . . . . . . . . . Extermination . | . . . . . . . . . . . . Reinforcement 2 | . 1 . . . . . . . . . 1 Assault . | . . . . . . . . . . . . Garrison . | . . . . . . . . . . . . Intercept . | . . . . . . . . . . . . Searches Triggered . | . . . . . . . . . . . . Construction Impeded . | . . . . . . . . . . . . Haulers Reinforced . | . . . . . . . . . . . . Active Scanning Responses . | . . . . . . . . . . . . Cargo Convoy Interrupts . | . . . . . . . . . . . . Stealth | -11 -10 -10 -10 -9 -8 -7 -7 -7 -7 -6 -6 --------- Run | Yrd Mat Min Exi Min Mat Fac Low Low Dat Pro Fac Distress Signals . | . . . . . . . . . . . . Communications Jammed 16 | . . . . . . . . . . . 16 Distress Signals 16 | . . . . . . . . . . . 16 Times Spotted 69 | . 16 7 . 3 5 . 4 10 . 15 9 Peak Tracking Total 4 | . 4 3 . 3 4 . 2 4 . 4 4 Tactical Retreats 3 | . 2 . . . . . . . . 1 . Traps | -11 -10 -10 -10 -9 -8 -7 -7 -7 -7 -6 -6 ------- Run | Yrd Mat Min Exi Min Mat Fac Low Low Dat Pro Fac Traps Triggered 1 | . . . . . . . . . . . 1 Indirectly . | . . . . . . . . . . . . Trap Hack Attempts . | . . . . . . . . . . . . Triggered . | . . . . . . . . . . . . Disarmed . | . . . . . . . . . . . . Reprogrammed . | . . . . . . . . . . . . Reused . | . . . . . . . . . . . . Traps Extracted . | . . . . . . . . . . . . Installed . | . . . . . . . . . . . . Triggered 3 | . . 1 . . . . 2 . . . . Machines | -11 -10 -10 -10 -9 -8 -7 -7 -7 -7 -6 -6 ---------- Run | Yrd Mat Min Exi Min Mat Fac Low Low Dat Pro Fac Machines Disabled 5 | . 2 . . . . . . . . . 3 Max in Single Turn 3 | . 1 . . . . . . . . . 3 Machines Repaired . | . . . . . . . . . . . . Machines Dismantled . | . . . . . . . . . . . . Machines Sabotaged . | . . . . . . . . . . . . Overloaded Fab Kills . | . . . . . . . . . . . . Hacking | -11 -10 -10 -10 -9 -8 -7 -7 -7 -7 -6 -6 --------- Run | Yrd Mat Min Exi Min Mat Fac Low Low Dat Pro Fac Machines Accessed 15 | . 7 . 2 . 2 1 . . 3 . . Terminals 7 | . 6 . . . . 1 . . . . . Fabricators . | . . . . . . . . . . . . Repair Stations 1 | . 1 . . . . . . . . . . Recycling Units 2 | . . . . . 2 . . . . . . Scanalyzers . | . . . . . . . . . . . . Garrison Access . | . . . . . . . . . . . . Total Hacks 49 | . 20 . 2 . 7 1 . . 19 . . Successful 35 | . 10 . 2 . 4 . . . 19 . . Failed 14 | . 10 . . . 3 1 . . . . . Catastrophic 5 | . 4 . . . . 1 . . . . . Database Lockouts . | . . . . . . . . . . . . Manual 20 | . 17 . 1 . 2 . . . . . . Terminals 19 | . 18 . . . . 1 . . . . . Fabricators . | . . . . . . . . . . . . Repair Stations 2 | . 2 . . . . . . . . . . Recycling Units 7 | . . . . . 7 . . . . . . Scanalyzers . | . . . . . . . . . . . . Garrison Access . | . . . . . . . . . . . . Terminal Hacks 23 | . 2 . 2 . . . . . 19 . . Record 3 | . . . 1 . . . . . 2 . . Part Schematic 10 | . . . . . . . . . 10 . . Robot Schematic 4 | . . . . . . . . . 4 . . Prototype ID Bank 3 | . . . . . . . . . 3 . . Registered Components 1 | . 1 . . . . . . . . . . Zone Layout 1 | . 1 . . . . . . . . . . Derelict Proto ID Bank 1 | . . . 1 . . . . . . . . Fabricator Hacks . | . . . . . . . . . . . . Repair Station Hacks 2 | . 2 . . . . . . . . . . Scan Component 1 | . 1 . . . . . . . . . . Repair 1 | . 1 . . . . . . . . . . Recycling Unit Hacks 2 | . . . . . 2 . . . . . . Retrieve Components 2 | . . . . . 2 . . . . . . Scanalyzer . | . . . . . . . . . . . . Garrison Access Hacks . | . . . . . . . . . . . . Unauthorized Hacks 8 | . 6 . . . 2 . . . . . . Terminals 6 | . 6 . . . . . . . . . . Botnet 5 | . 5 . . . . . . . . . . Operators 1 | . 1 . . . . . . . . . . Fabricators . | . . . . . . . . . . . . Repair Stations . | . . . . . . . . . . . . Recycling Units 2 | . . . . . 2 . . . . . . Monitor 1 | . . . . . 1 . . . . . . Recyclers 1 | . . . . . 1 . . . . . . Scanalyzers . | . . . . . . . . . . . . Garrison Access . | . . . . . . . . . . . . Data Cores Recovered . | . . . . . . . . . . . . Used . | . . . . . . . . . . . . Hacking Detections 8 | . 6 . . . 1 1 . . . . . Full Trace Events 1 | . 1 . . . . . . . . . . Feedback Events . | . . . . . . . . . . . . Feedback Blocked . | . . . . . . . . . . . . Robot Schematics Acquired 4 | . . . . . . . . . 4 . . Robots Built . | . . . . . . . . . . . . Authchips . | . . . . . . . . . . . . Time . | . . . . . . . . . . . . Total Robot Build Rating . | . . . . . . . . . . . . Part Schematics Acquired 10 | . . . . . . . . . 10 . . Parts Built . | . . . . . . . . . . . . Authchips . | . . . . . . . . . . . . Time . | . . . . . . . . . . . . Total Part Build Rating . | . . . . . . . . . . . . Parts Repaired 1 | . 1 . . . . . . . . . . Time 26 | . 26 . . . . . . . . . . Parts Recycled . | . . . . . . . . . . . . Recycled Matter . | . . . . . . . . . . . . Retrieved Matter . | . . . . . . . . . . . . Retrieved Components . | . . . . . . . . . . . . Parts Scanalyzed . | . . . . . . . . . . . . Part Schematics Acquired . | . . . . . . . . . . . . Parts Damaged . | . . . . . . . . . . . . Bothacking | -11 -10 -10 -10 -9 -8 -7 -7 -7 -7 -6 -6 ------------ Run | Yrd Mat Min Exi Min Mat Fac Low Low Dat Pro Fac Used RIF Installer . | . . . . . . . . . . . . Robots Hacked . | . . . . . . . . . . . . Non-combat . | . . . . . . . . . . . . Combat . | . . . . . . . . . . . . Robot Hacks Applied . | . . . . . . . . . . . . Relay Couplers Released . | . . . . . . . . . . . . Fabnet Peak Effective % . | . . . . . . . . . . . . Robots Rewired . | . . . . . . . . . . . . Allies Hacked . | . . . . . . . . . . . . Hacks Repelled . | . . . . . . . . . . . . Allies | -11 -10 -10 -10 -9 -8 -7 -7 -7 -7 -6 -6 -------- Run | Yrd Mat Min Exi Min Mat Fac Low Low Dat Pro Fac Total Allies 2 | . . . . 1 . . . . . 1 . Largest Group 1 | . . . . 1 1 . . . . 1 . Highest-Rated Group 96 | . . . . 31 31 . . . . 96 . Highest-Rated Ally 96 | . . . . 31 31 . . . . 96 . Total Orders . | . . . . . . . . . . . . Ally Attacks 14 | . . . . . . . . . . 14 . Total Damage 498 | . . . . . . . . . . 498 . Kills 1 | . . . . . . . . . . 1 . Allies Corrupted . | . . . . . . . . . . . . Allies Melted . | . . . . . . . . . . . . Intel | -11 -10 -10 -10 -9 -8 -7 -7 -7 -7 -6 -6 ------- Run | Yrd Mat Min Exi Min Mat Fac Low Low Dat Pro Fac Robot Analysis Total . | . . . . . . . . . . . . Derelict Logs Recovered 4 | . . 1 . 2 . . . 1 . . . Drone Launches . | . . . . . . . . . . . . Drone Recoveries . | . . . . . . . . . . . . Exploration | -11 -10 -10 -10 -9 -8 -7 -7 -7 -7 -6 -6 ------------- Run | Yrd Mat Min Exi Min Mat Fac Low Low Dat Pro Fac Turns Passed 5983 | 63 931 583 474 643 326 176 291 569 304 1108 515 Spaces Moved 2764 | 35 452 331 289 349 158 105 171 293 77 344 160 Core 9 | 3 . . . . . . . . . 5 1 Treads 2297 | 32 452 331 289 349 158 105 171 293 77 40 . Legs 456 | . . . . . . . . . . 297 159 Wheels . | . . . . . . . . . . . . Hover . | . . . . . . . . . . . . Flight 2 | . . . . . . . . . . 2 . Fastest Speed 50 | 50 160 160 160 160 160 160 160 160 400 260 260 Average Speed 192 | 153 160 160 160 160 191 160 160 178 400 291 266 Slowest Speed 1300 | 160 160 160 160 160 240 160 160 400 400 1050 1300 Overloaded Moves . | . . . . . . . . . . . . Propulsion Burnouts . | . . . . . . . . . . . . Robots Hopped . | . . . . . . . . . . . . Cave-ins Triggered . | . . . . . . . . . . . . Exploration Rate (%) 45 | 4 83 81 68 72 17 4 44 49 68 50 8 Regions Visited 11 Branch Regions 7 Pre-discovered Areas 3 | . . . 1 1 . . . . 1 . . Known Exits Taken 6 | . . . . . 1 1 1 1 1 1 . Unknown Exits Taken 5 | 1 1 1 1 1 . . . . . . . Scrap Searched 10 | . . 1 . 2 . . 2 3 . 2 . Spaces Dug 4 | . 4 . . . . . . . . . . Terrain Destroyed 331 | . 64 6 . 35 . . 37 114 . 30 45 Melee . | . . . . . . . . . . . . Projectile 45 | . . . . . . . 17 19 . . 9 AOE 286 | . 64 6 . 35 . . 20 95 . 30 36 Terrain Rammed . | . . . . . . . . . . . . Walls Destroyed . | . . . . . . . . . . . . Machines Disabled . | . . . . . . . . . . . . Actions | -11 -10 -10 -10 -9 -8 -7 -7 -7 -7 -6 -6 --------- Run | Yrd Mat Min Exi Min Mat Fac Low Low Dat Pro Fac Total 3211 | 41 590 372 302 430 180 113 185 324 76 388 210 Wait 185 | . 68 23 . 72 . . 11 . . . 11 Move 2753 | 34 451 330 288 348 157 104 170 292 76 343 160 Hop . | . . . . . . . . . . . . Pick Up 51 | 1 17 4 4 1 9 2 . 7 . 3 3 Fast Attach 22 | 6 3 . 1 . . 1 . 4 . 1 6 Attach 20 | . 1 1 . . 3 1 . 3 . 6 5 Detach 3 | . 1 . 1 . . . . 1 . . . Swap 22 | . 5 3 3 2 2 2 . 2 . 2 1 Drop 34 | . 6 4 5 2 6 3 . 4 . . 4 Fire 110 | . 38 7 . 5 3 . 4 11 . 30 12 Melee 9 | . . . . . . . . . . 3 6 Ram . | . . . . . . . . . . . . Kick 2 | . . . . . . . . . . . 2 Crush . | . . . . . . . . . . . . Escape Stasis . | . . . . . . . . . . . . Rewire . | . . . . . . . . . . . . Trap . | . . . . . . . . . . . . Miscellaneous . | . . . . . . . . . . . . Route ------- -11/Scrapyard -10/Materials (discovered 4 exits: [*Mat x2] / [*Min x2]) -10/Mines (discovered 2 exits: [*Mat] / *Exi) -10/Exiles -9/Mines (discovered 2 exits: *Mat x2) -8/Materials (discovered 2 exits: *Fac x2) -7/Factory -7/Lower Caves -7/Lower Caves -7/Data Miner -6/Proximity Caves -6/Factory History --------- Turn | Location | Event 15 | -11/Scrapyard | Discovered new exit (range 14) 64 | -11/Scrapyard | Entered Materials 305 | -10/Materials | Build established: Mutant 333 | -10/Materials | Repaired Ion Engine 390 | -10/Materials | Discovered new exit (range 14) 525 | -10/Materials | Discovered new exit (range 9) 532 | -10/Materials | Discovered new exit (range 11) 936 | -10/Materials | Discovered new exit (range 7) 995 | -10/Materials | Entered Mines 1096 | -10/Mines | Joined a pair of Derelicts in attacking an 0b10 outpost 1189 | -10/Mines | Assembled infested the area 1193 | -10/Mines | Learned location of 1 exit from Materials 1541 | -10/Mines | Discovered new exit (range 11) 1572 | -10/Mines | Deemed a non-threat by the Exiles lab entrance 1572 | -10/Mines | Discovered new exit (range 5) 1578 | -10/Mines | Entered Exiles 1618 | -10/Exiles | Met 8R-AWN 1646 | -10/Exiles | Met EX-HEX 1692 | -10/Exiles | Met EX-BIN 1714 | -10/Exiles | Aligned with FarCom system 1716 | -10/Exiles | Given EX-Vault access code 1753 | -10/Exiles | Opened EX-Vault 1768 | -10/Exiles | Found AWS/Gauss 1773 | -10/Exiles | Found Gui. Plasma Cannon 1808 | -10/Exiles | Warned to stay clear of 0b10 Research branches 1901 | -10/Exiles | Met EX-DEC 1930 | -10/Exiles | Learned location of Zion (-6) 2039 | -10/Exiles | Discovered new exit (range 10) 2052 | -10/Exiles | Stole two prototypes: Gui. Plasma Cannon, AWS/Gauss 2052 | -10/Exiles | Entered Mines 2094 | -9/Mines | Discovered new exit (range 7) 2134 | -9/Mines | Discovered new exit (range 9) 2293 | -9/Mines | Received a Rocket Launcher from a helpful Derelict 2493 | -9/Mines | Learned Materials garrison access intel 2522 | -9/Mines | Received a Mining Laser from a helpful Derelict 2695 | -9/Mines | Entered Materials 2695 | -8/Materials | Accompanied by 1 ally 2695 | -8/Materials | Evolved 4 slots: Propulsion x1, Utility x1, Weapon x2 2696 | -8/Materials | Identified exit to Factory 2697 | -8/Materials | Loaded intel: 1 garrison access location 2997 | -8/Materials | Discovered exit to Factory (range 15) 3021 | -8/Materials | Entered Factory 3021 | -7/Factory | Evolved 2 slots: Propulsion x1, Utility x1 3023 | -7/Factory | FarCom data flow suspended 3149 | -7/Factory | Build established: Tank 3177 | -7/Factory | Discovered new exit (range 11) 3196 | -7/Factory | Identified exit to Lower Caves 3197 | -7/Factory | Entered Lower Caves 3197 | -7/Lower Caves | Spotted 10-MKD(f) 3199 | -7/Lower Caves | Encountered a Master Thief 3207 | -7/Lower Caves | Gui. Plasma Cannon stolen by Master Thief 3456 | -7/Lower Caves | Discovered new exit (range 15) 3462 | -7/Lower Caves | Attracted the attention of an 0b10 checkpoint 3487 | -7/Lower Caves | Identified exit to Lower Caves 3488 | -7/Lower Caves | Entered another Lower Caves area 3489 | -7/Lower Caves | Encountered a Warlord checkpoint 3501 | -7/Lower Caves | Build established: Gunner 3689 | -7/Lower Caves | Attracted the attention of an 0b10 checkpoint 3721 | -7/Lower Caves | Learned Factory terminal intel 3910 | -7/Lower Caves | Spotted B-75 Beast 3927 | -7/Lower Caves | Destroyed B-75 Beast 3983 | -7/Lower Caves | Spotted IF-ZPL(f) 3984 | -7/Lower Caves | Encountered a Master Thief 3984 | -7/Lower Caves | Spotted IR-DLL(f) 3985 | -7/Lower Caves | Encountered a Master Thief 3985 | -7/Lower Caves | Spotted G2-BSR(f) 3986 | -7/Lower Caves | Encountered a Master Thief 3986 | -7/Lower Caves | AWS/Gauss stolen by Master Thief 3986 | -7/Lower Caves | Discovered new exit (range 15) 3986 | -7/Lower Caves | Spotted QW-5Y8(f) 3987 | -7/Lower Caves | Encountered a Master Thief 3988 | -7/Lower Caves | Dirty Datajack stolen by Master Thief 3990 | -7/Lower Caves | Destroyed IR-DLL(f) 3991 | -7/Lower Caves | Dirty Datajack stolen by Master Thief 4053 | -7/Lower Caves | Identified exit to Data Miner 4057 | -7/Lower Caves | Entered Data Miner 4057 | -7/Data Miner | Discovered new exit (range 6) 4073 | -7/Data Miner | Identified exit to Proximity Caves 4133 | -7/Data Miner | Met Data Miner 4201 | -7/Data Miner | Learned location of Section 7 (-2) 4201 | -7/Data Miner | Acquired the access code to Warlord's prototype stash 4269 | -7/Data Miner | Received God Mode back door access code from Data Miner 4280 | -7/Data Miner | Build established: Mutant 4361 | -7/Data Miner | Entered Proximity Caves 4529 | -6/Proximity Caves | Escorted by Enhanced Grunt 4562 | -6/Proximity Caves | Spotted B-75 Beast 4566 | -6/Proximity Caves | Lost 3 parts (1n2w) 4601 | -6/Proximity Caves | Destroyed B-75 Beast 4622 | -6/Proximity Caves | Lost 4 parts (1p1n1u1w) 4745 | -6/Proximity Caves | Attracted the attention of an 0b10 checkpoint 4746 | -6/Proximity Caves | Core integrity fell below 50% 4844 | -6/Proximity Caves | Build established: Gunner 5456 | -6/Proximity Caves | Discovered new exit (range 5) 5464 | -6/Proximity Caves | Identified exit to Factory 5469 | -6/Proximity Caves | Entered Factory 5469 | -6/Factory | Evolved 2 slots: Power x1, Utility x1 5470 | -6/Factory | Loaded intel: 27 terminal locations 5984 | -6/Factory | Self-destructed Last Messages --------------- 05969_ R-10 Processor distress signal jammed. 05969_ K-01 Serf collects debris. 05971_ K-01 Serf cleans the Construction Platform. 05973_ K-01 Serf collects debris. 05974_ Transmission Jammer destroyed. 05974_ R-10 Processor collects Flexi-carbon Leg. 05974_ K-01 Serf collects debris. 05976_ Hvy. Flak Cannon destroyed. 05977_ K-01 Serf cleans the Terminal. 05977_ K-01 Serf collects debris. 05979_ U-05 Engineer builds a Wall. 05980_ Critical hit (Burn: +37). 05981_ K-01 Serf collects debris. 05981_ C-30 ARC bursts open, deploying its payload. 05981_ G-67 Veteran unfolds itself. 05981_ G-50 Soldier unfolds itself. 05981_ Imp. Deuterium Engine destroyed. 05981_ K-01 Serf collects debris. Map ----- +----------------------------------------------------+ | ?????????????????????????????????????????????????? | | ?????????????????????????????????????????????????? | | ?????????????????????????????????????????????????? | | ?????????????????????????????????????????????????? | | ?????????????????????????????????????????????????? | | ?????????????????????????????????????????????????? | | ?????????????????????????????????????????????????? | | ?????????????????????????????????????????????????? | | ?????????????????????????????????????????????????? | | ?????????????????????????????????????????????????? | | ?????????????????????????????????????????????????? | | ?????????????????????????????????????????????????? | | ?????????????????????????????????????????????????? | | ?????????????????????????????????????????????????? | | ?????????????????????????????????????????????????? | | ?????????????????????????????????????????????????? | | ???????????#+#####???????????????????????????????? | | ??????????? #???????????????????????????????? | | ????# ? ?"" """ #???????????????????????????????? | | ????# """ """ #???????????????????????????????? | | ????# """ """ #???????????????????????????????? | | ????# #???????????????????????????????? | | ????#! """ """ #?????###########/#### ?????????? | | ????# """ """ ####### % g %g ???????? | | ??? #! """ """ + g u k kg ???????? | | ??? # #####"# @ R ???????? | | ??? # "" #???###k ;######+####??????????? | | ??# ? "F"" #?????# %##????????????????????? | | ??# ? """" #????? k #????????????????????? | | ??# ?######""########?#k % #????????????????????? | | ??# #???# T #????????????????????? | | ??# #???# ######?## ku #????????????????????? | | ??# #???# #???????# #????????????????????? | | ??# ##### #???????### ###????????????????????? | | ??# #?????????# #??????????????????????? | | ??# #?????????# #??????????????????????? | | ### #?????????# #??????????????????????? | | ]] "" #??????????u???????????????????????? | | ] ] Y" #?????????? ???????????????????????? | | "" #?????????? ???????????????????????? | | #??????????????????????????????????? | | #??????????????????????????????????? | | ######### #??????????????????????????????????? | | #?????## # ????????????????????????????????? | | #?????## # ??????????????????????????????? | | #?????? # "" ?????????????????????????????? | | #??????T + "F ????????????????????????????? | | #??????? # "????????????????????????????????? | | #??????? #?"????????????????????????????????? | | #??????? #??????????????????????????????????? | +----------------------------------------------------+ Best States ------------- Heat Dissipation 37 Energy Generation 16 Energy Capacity 290 Matter Stores 300 Matter Capacity 300 Sight Range 16 Terrain Scan Density 10 Jamming Range 12 Armor Coverage 225 Evasion (%) 40 Core Analysis 6 Armor Integrity Analysis 30 Recoil Reduction 4 Item Schematics ----------------- Combat Drone Bay | -7/Data Miner | Free Lgt. Regenerative Plating | -7/Data Miner | Free Biomechanical Wings | -7/Data Miner | Free Exp. Targeting Computer | -7/Data Miner | Free Imp. Heavy Laser | -7/Data Miner | Free Field Propulsion Drive | -7/Data Miner | Free Imp. Focal Shield | -7/Data Miner | Free Imp. Arc Projector | -7/Data Miner | Free Hvy. Disruptor Cannon | -7/Data Miner | Free Adv. Thermal Shield | -7/Data Miner | Free Robot Schematics ------------------ M-14 Sweeper | -7/Data Miner | Free H-55 Commando | -7/Data Miner | Free X-57 Shotgunner | -7/Data Miner | Free L-41 Fighter | -7/Data Miner | Free Fabricated ------------ Nothing Alien Tech Used ----------------- None Achievements -------------- None Challenges ------------ None Game ------ Seed SpliceFieldDisintegrator Manual? 0 Play Time 00:31:49 Cumulative 187.4 hours Start 2024.05.16 @ 21:46:15 End 2024.05.16 @ 22:18:14 Sessions 1 Manual Loads 0 Difficulty Rogue Special Mode None Game No. 180 Rogue 175 Adventurer 5 Explorer 0 Win Type - Total 3 Types 2/0/0/1/0/0/0/0/0 Lore% 54 Gallery% 75 Achievement% 56 Wizard Run 0 Options --------- Layout 2 ASCII 0 Keyboard 0 Movement Mouse Keybinds 0 Fullscreen 1 Font 24/Terminus Map View 50x44 Zoom Use 0% Tactical HUD 1 Map Filters NONE Filters NONE Steam 1 RUN: 371067e4-77ce-474c-8acd-6c5dc2deaf07